Cogmind - Beta 11.1 @@@ ROGUE MODE // 2022.04.22 @ 22:10:12 Player: QQQQ Result: Destroyed by as-34089 with Assembled Rifle Performance ------------- Evolutions (0) 0 Regions Visited (4) 800 Robots Destroyed (18) 90 Value Destroyed (345) 345 Prototype IDs (3) 60 Alien Tech Used (0) 0 Bonus (300) 300 TOTAL SCORE: 1595 Bonus ------- Aligned with FarCom 300 Cogmind --------- Core Integrity 0/250 Matter 235/300 Energy 100/100 System Corruption 0% Temperature Cool (0) Movement Treading (160) Location -9/Mines Parts ------- > --- POWER (1) -------- (None) > --- PROPULSION (2) --- Light Treads Light Treads > --- UTILITY (2) ------ Heat Sink Medium Storage Unit > --- WEAPON (2) ------- AWS/Gauss > --- INVENTORY (10) --- Light Fission Core Aluminum Leg Aluminum Leg Makeshift Leg Medium Storage Unit Compact Matter Pod (150) Signal Interpreter Light Assault Rifle Light Assault Rifle Grenade Launcher Peak State ------------ > --- POWER ------------ Light Ion Engine > --- PROPULSION ------- Aluminum Leg Aluminum Leg > --- UTILITY ---------- Heat Sink Medium Storage Unit > --- WEAPON ----------- AWS/Gauss > --- INVENTORY -------- Light Fission Core Light Treads Light Treads Makeshift Leg Medium Storage Unit Compact Matter Pod Signal Interpreter Grenade Launcher [Rating: 22] Favorites ----------- Power Light Ion Engine Engine Light Ion Engine Propulsion Aluminum Leg Treads Light Treads Leg Aluminum Leg Wheel Wheel Utility Heat Sink Device Heat Sink Storage Medium Storage Unit Weapon Light Assault Rifle Energy Gun Small Laser Ballistic Gun Light Assault Rifle Build | -11 -10 -10 -10 -9 ------- Run | Scr Mat Min Exi Min Slots Evolved . | . . . . . Power . | . . . . . Propulsion . | . . . . . Utility . | . . . . . Weapon . | . . . . . Parts Attached 24 | 6 10 2 4 2 Power 4 | 1 2 . 1 . Engine 4 | 1 2 . 1 . Core . | . . . . . Reactor . | . . . . . Propulsion 8 | 2 2 . 2 2 Treads 2 | . . . . 2 Leg 4 | . 2 . 2 . Wheel 2 | 2 . . . . Hover . | . . . . . Flight . | . . . . . Utility 5 | 1 3 1 . . Device 2 | . 2 . . . Storage 3 | 1 1 1 . . Processor . | . . . . . Hackware . | . . . . . Protection . | . . . . . Artifact . | . . . . . Weapon 7 | 2 3 1 1 . Energy Gun 2 | 1 1 . . . Energy Cannon . | . . . . . Ballistic Gun 5 | 1 2 1 1 . Ballistic Cannon . | . . . . . Launcher . | . . . . . Special Weapon . | . . . . . Impact Weapon . | . . . . . Slashing Weapon . | . . . . . Piercing Weapon . | . . . . . Special Melee Weapon . | . . . . . Unidentified Prototypes 1 | . . . 1 . Parts Lost 3 | . 2 . . 1 Power 2 | . 1 . . 1 Propulsion 1 | . 1 . . . Utility . | . . . . . Weapon . | . . . . . Highest Loss Streak 1 | . 1 . . 1 To Critical Strikes . | . . . . . Average Slot Usage (%) 95 | . 94 100 96 85 Engine 14 | . 14 14 14 14 Treads 2 | . . . . 28 Leg 22 | . 18 28 28 . Wheel 3 | . 9 . . . Device 12 | . 9 14 14 14 Storage 14 | . 14 14 14 14 Energy Gun 4 | . 11 . . . Ballistic Gun 21 | . 16 28 24 14 Naked Turns . | . . . . . Heaviest Build 24 | 13 13 16 24 24 Greatest Support 40 | 20 20 20 20 40 Greatest Overweight (x) 3 | 3 1 . 1 . Average Overweight (x) . | . . . . . Largest Inventory Capacity 10 | 8 8 10 10 10 Average Capacity 9 | 7 8 8 10 10 Most Carried 10 | 7 8 10 10 10 Average Carried 8 | 3 6 8 9 10 Final Capacity 10 | 8 8 10 10 10 Final Carried 10 | 5 8 10 10 10 Class Distribution -------------------- 60% | Scavenger-Mutant 39% | Mutant Dominant Class ---------------- Mutant | -10/Materials Scavenger-Mutant | -10/Mines Scavenger-Mutant | -10/Exiles Mutant | -9/Mines Resources | -11 -10 -10 -10 -9 ----------- Run | Scr Mat Min Exi Min Matter Collected 433 | 223 170 40 . . Remotely . | . . . . . Salvage Created 610 | . 352 44 . 214 Parts 30 | . 26 4 . . Haulers Intercepted . | . . . . . Recyclers Shooed . | . . . . . Parts Field Recycled . | . . . . . Retrieved Matter . | . . . . . Parts Self-Destructed . | . . . . . Prevented . | . . . . . Kills | -11 -10 -10 -10 -9 ------- Run | Scr Mat Min Exi Min Combat Hostiles Destroyed 28 | . 13 3 . 12 Guns 28 | . 13 3 . 12 Classes Destroyed 5 | . 3 . . 2 Worker 1 | . . . . 1 Operator 1 | . 1 . . . Swarmer 9 | . 6 3 . . Grunt 7 | . 7 . . . Assembled 12 | . . . . 12 Best Kill Streak 13 | . 3 3 . 13 Combat Bots Only 12 | . 3 3 . 12 Max Kills in Single Turn 2 | . 2 1 . 1 Gunslinging . | . . . . . Exploded . | . . . . . Melee . | . . . . . Uniques/NPCs Destroyed . | . . . . . Combat | -11 -10 -10 -10 -9 -------- Run | Scr Mat Min Exi Min Damage Taken 1016 | . 676 54 . 286 Core 257 | . 177 21 . 59 Absorbed by Shields . | . . . . . Core Remaining (%) 100 | 100 . . . . Volleys Fired 55 | . 50 5 . . Largest 2 | . 2 2 . . Hottest 70 | . 70 40 . . Shots Fired 132 | . 100 10 . 22 Gun 132 | . 100 10 . 22 Cannon . | . . . . . Launcher . | . . . . . Special . | . . . . . Kinetic 82 | . 50 10 . 22 Thermal 50 | . 50 . . . Explosive . | . . . . . Electromagnetic . | . . . . . Robot Hit Streak 7 | . 7 3 . 5 Robot Miss Streak 5 | . 5 3 . 1 Penetration Max . | . . . . . Secondary Targets 2 | . 2 . . . Max Gunslinging Chain 1 | . 1 . . . Autonomous 22 | . . . . 22 Shots Hit Robots 80 | . 59 4 . 17 Core Hits 40 | . 23 4 . 13 Critical Kills 1 | . 1 . . . Critical Parts Destroyed . | . . . . . Critical Strikes 4 | . 4 . . . Burn 3 | . 3 . . . Destroy 1 | . 1 . . . Melee Attacks . | . . . . . Impact . | . . . . . Slashing . | . . . . . Piercing . | . . . . . Sneak Attacks . | . . . . . Combat Hostiles . | . . . . . Follow-up Attacks . | . . . . . Damage Inflicted 1160 | . 601 32 . 527 Guns 1160 | . 601 32 . 527 Cannons . | . . . . . Explosions . | . . . . . Melee . | . . . . . Ramming . | . . . . . Kinetic 860 | . 301 32 . 527 Thermal 300 | . 300 . . . Explosive . | . . . . . Electromagnetic . | . . . . . Impact . | . . . . . Slashing . | . . . . . Piercing . | . . . . . Highest Corruption . | . . . . . Average Corruption . | . . . . . Corruption Purged . | . . . . . Corruption Blocked . | . . . . . Overload Shots . | . . . . . Overflow Damage . | . . . . . Projectiles . | . . . . . Explosions . | . . . . . Melee . | . . . . . Knockbacks . | . . . . . Impact . | . . . . . Kinetic . | . . . . . Secondary . | . . . . . Self-Inflicted Damage . | . . . . . Shots . | . . . . . Rammed . | . . . . . Targets Rammed . | . . . . . Kicked . | . . . . . Crushed . | . . . . . Highest Temperature 218 | . 218 . . . Average Temperature 66 | . 66 . . . Received Heat Transfer 304 | . 258 6 . 40 Effects 1 | . 1 . . . Energy Bleed 1 | . 1 . . . Siege Activations . | . . . . . Robots Corrupted . | . . . . . Combat Hostiles . | . . . . . Parts Fried 1 | . . . . 1 Impact Corruptions . | . . . . . Robots Melted . | . . . . . Combat Hostiles . | . . . . . Parts Melted 6 | . 6 . . . Heat Transferred 1003 | . 1003 . . . Parts Sabotaged . | . . . . . Parts Stolen . | . . . . . Parts Stripped . | . . . . . Power Chain Reactions . | . . . . . Missiles Intercepted . | . . . . . Alert | -11 -10 -10 -10 -9 ------- Run | Scr Mat Min Exi Min Peak Influence 233 | . 233 115 . 34 Initial 39 | . . 39 . . Average 59 | . 82 45 . 2 Maximum Alert Level 1 | . 1 . . . Low Security (%) 96 | 100 93 100 . 100 Level 1 3 | . 6 . . . Level 2 . | . . . . . Level 3 . | . . . . . Level 4 . | . . . . . Level 5 . | . . . . . High Security . | . . . . . Max Security . | . . . . . Squads Dispatched 2 | . 2 . . . Investigation 1 | . 1 . . . Extermination . | . . . . . Reinforcement 1 | . 1 . . . Assault . | . . . . . Garrison . | . . . . . Intercept . | . . . . . Searches Triggered . | . . . . . Construction Impeded . | . . . . . Haulers Reinforced . | . . . . . Active Scanning Responses . | . . . . . Cargo Convoy Interrupts . | . . . . . Stealth | -11 -10 -10 -10 -9 --------- Run | Scr Mat Min Exi Min Distress Signals . | . . . . . Communications Jammed . | . . . . . Distress Signals . | . . . . . Times Spotted 41 | . 16 5 . 20 Peak Tracking Total 17 | . 4 3 . 17 Tactical Retreats 2 | . . 2 . . Traps | -11 -10 -10 -10 -9 ------- Run | Scr Mat Min Exi Min Traps Triggered 1 | . 1 . . . Indirectly . | . . . . . Trap Hack Attempts . | . . . . . Triggered . | . . . . . Disarmed . | . . . . . Reprogrammed . | . . . . . Reused . | . . . . . Traps Extracted . | . . . . . Installed . | . . . . . Triggered . | . . . . . Machines | -11 -10 -10 -10 -9 ---------- Run | Scr Mat Min Exi Min Machines Disabled . | . . . . . Max in Single Turn . | . . . . . Machines Sabotaged . | . . . . . Garrisons Compromised . | . . . . . Overloaded Fab Kills . | . . . . . Hacking | -11 -10 -10 -10 -9 --------- Run | Scr Mat Min Exi Min Machines Accessed 9 | . 5 . 4 . Terminals 4 | . 4 . . . Fabricators . | . . . . . Repair Stations . | . . . . . Recycling Units 1 | . 1 . . . Scanalyzers . | . . . . . Garrison Access . | . . . . . Total Hacks 63 | . 14 . 49 . Successful 58 | . 9 . 49 . Failed 5 | . 5 . . . Catastrophic 1 | . 1 . . . Database Lockouts . | . . . . . Manual 1 | . . . 1 . Terminals 12 | . 12 . . . Fabricators . | . . . . . Repair Stations . | . . . . . Recycling Units 2 | . 2 . . . Scanalyzers . | . . . . . Garrison Access . | . . . . . Terminal Hacks 56 | . 7 . 49 . Record 51 | . 2 . 49 . Robot Analysis 1 | . 1 . . . Prototype ID Bank 1 | . 1 . . . Surveillance Status 1 | . 1 . . . Recall Reinforcements 1 | . 1 . . . Hauler Manifests 1 | . 1 . . . Fabricator Hacks . | . . . . . Repair Station Hacks . | . . . . . Recycling Unit Hacks 2 | . 2 . . . Report Inventory 1 | . 1 . . . Retrieve Components 1 | . 1 . . . Scanalyzer . | . . . . . Garrison Access Hacks . | . . . . . Unauthorized Hacks . | . . . . . Terminals . | . . . . . Fabricators . | . . . . . Repair Stations . | . . . . . Recycling Units . | . . . . . Scanalyzers . | . . . . . Garrison Access . | . . . . . Data Cores Recovered . | . . . . . Used . | . . . . . Hacking Detections 2 | . 2 . . . Full Trace Events . | . . . . . Feedback Events . | . . . . . Feedback Blocked . | . . . . . Robot Schematics Acquired . | . . . . . Robots Built . | . . . . . Authchips . | . . . . . Time . | . . . . . Total Robot Build Rating . | . . . . . Part Schematics Acquired . | . . . . . Parts Built . | . . . . . Authchips . | . . . . . Time . | . . . . . Total Part Build Rating . | . . . . . Parts Repaired . | . . . . . Time . | . . . . . Parts Recycled . | . . . . . Recycled Matter . | . . . . . Retrieved Matter . | . . . . . Retrieved Components 10 | . 10 . . . Parts Scanalyzed . | . . . . . Part Schematics Acquired . | . . . . . Parts Damaged . | . . . . . Bothacking | -11 -10 -10 -10 -9 ------------ Run | Scr Mat Min Exi Min Used RIF Installer . | . . . . . Robots Hacked . | . . . . . Non-combat . | . . . . . Combat . | . . . . . Robot Hacks Applied . | . . . . . Relay Couplers Released . | . . . . . Fabnet Peak Effective % . | . . . . . Robots Rewired . | . . . . . Allies Hacked . | . . . . . Hacks Repelled . | . . . . . Allies | -11 -10 -10 -10 -9 -------- Run | Scr Mat Min Exi Min Total Allies 2 | . . 2 . . Largest Group 2 | . . 2 . . Highest-Rated Group 42 | . . 42 . . Highest-Rated Ally 31 | . . 31 . . Total Orders . | . . . . . Ally Attacks 4 | . . 4 . . Total Damage 42 | . . 42 . . Kills . | . . . . . Allies Corrupted . | . . . . . Allies Melted . | . . . . . Intel | -11 -10 -10 -10 -9 ------- Run | Scr Mat Min Exi Min Robot Analysis Total 1 | . 1 . . . Derelict Logs Recovered 1 | . . 1 . . Drone Launches . | . . . . . Drone Recoveries . | . . . . . Exploration | -11 -10 -10 -10 -9 ------------- Run | Scr Mat Min Exi Min Turns Passed 2207 | 63 776 366 840 162 Spaces Moved 1576 | 61 509 278 629 99 Core 17 | 17 . . . . Treads 99 | . . . . 99 Legs 1221 | . 314 278 629 . Wheels 239 | 44 195 . . . Hover . | . . . . . Flight . | . . . . . Fastest Speed 50 | 50 80 120 120 160 Average Speed 120 | 79 104 120 131 160 Slowest Speed 200 | 200 120 120 190 160 Overloaded Moves . | . . . . . Propulsion Burnouts . | . . . . . Robots Hopped . | . . . . . Cave-ins Triggered . | . . . . . Exploration Rate (%) 47 | 3 66 51 94 22 Regions Visited 4 Branch Regions 3 Pre-discovered Areas 2 | . . 1 1 . Known Exits Taken . | . . . . . Unknown Exits Taken 4 | 1 1 1 1 . Scrap Searched 1 | . . 1 . . Spaces Dug . | . . . . . Terrain Destroyed 19 | . . . . 19 Melee . | . . . . . Projectile 19 | . . . . 19 AOE . | . . . . . Terrain Rammed . | . . . . . Walls Destroyed . | . . . . . Machines Disabled . | . . . . . Actions | -11 -10 -10 -10 -9 --------- Run | Scr Mat Min Exi Min Total 1784 | 73 662 303 644 102 Wait 86 | . 74 11 . 1 Move 1572 | 60 508 277 628 99 Hop . | . . . . . Pick Up 29 | 7 12 5 5 . Fast Attach 6 | 4 2 . . . Attach 6 | 2 2 . 2 . Detach 1 | . . . 1 . Swap 12 | . 6 2 2 2 Drop 17 | . 8 3 6 . Fire 55 | . 50 5 . . Melee . | . . . . . Ram . | . . . . . Kick . | . . . . . Crush . | . . . . . Escape Stasis . | . . . . . Rewire . | . . . . . Trap . | . . . . . Miscellaneous . | . . . . . Route ------- -11/Scrapyard -10/Materials (discovered 3 exits: [*Mat x2] / [*Min]) -10/Mines -10/Exiles (discovered 2 exits: [*Min x2]) -9/Mines History --------- Turn | Location | Event 14 | -11/Scrapyard | Discovered new exit (range 16) 64 | -11/Scrapyard | Entered Materials 209 | -10/Materials | Discovered new exit (range 16) 305 | -10/Materials | Build established: Mutant 413 | -10/Materials | Core integrity fell below 50% 662 | -10/Materials | Discovered new exit (range 8) 825 | -10/Materials | Discovered new exit (range 14) 840 | -10/Materials | Entered Mines 862 | -10/Mines | Deemed a non-threat by the Exiles lab entrance 862 | -10/Mines | Discovered new exit (range 5) 1019 | -10/Mines | Build established: Scavenger-Mutant 1048 | -10/Mines | Learned location of Mines (-9) 1206 | -10/Mines | Entered Exiles 1237 | -10/Exiles | Discovered new exit (range 15) 1249 | -10/Exiles | Met 8R-AWN 1272 | -10/Exiles | Met EX-HEX 1386 | -10/Exiles | Met EX-DEC 1417 | -10/Exiles | Visited The Gauntlet 1597 | -10/Exiles | Learned location of Zion (-7) 1633 | -10/Exiles | Discovered new exit (range 12) 1728 | -10/Exiles | Met EX-BIN 1759 | -10/Exiles | Aligned with FarCom system 1760 | -10/Exiles | Given EX-Vault access code 1811 | -10/Exiles | Opened EX-Vault 1845 | -10/Exiles | Found Prototype Ballistic Gun 1847 | -10/Exiles | Identified AWS/Gauss 1897 | -10/Exiles | Warned to stay clear of 0b10 Research branches 2046 | -10/Exiles | Left Exiles lab with AWS/Gauss 2046 | -10/Exiles | Entered Mines 2182 | -9/Mines | Assembled infested the area 2187 | -9/Mines | Assisted by a Guerilla fighting off Assembled 2196 | -9/Mines | Core integrity fell below 20% 2208 | -9/Mines | Destroyed by as-34089 with Assembled Rifle Last Messages --------------- Slug penetrates as-27485. as-27485 destroyed. as-16740 destroyed. Slug penetrates Wall. Slug penetrates as-14251. as-14251 destroyed. as-31453 destroyed. Lgt. Ion Engine destroyed. Slug penetrates Wall. Slug penetrates as-58609. as-58609 destroyed. Slug penetrates Wall. as-92389 destroyed. as-65149 destroyed. Slug penetrates as-65460. as-65460 destroyed. Slug penetrates Wall. Slug penetrates as-88886. as-88886 destroyed. Slug penetrates Earth. Map ----- +----------------------------------------------------+ | ????????????????????????????????????????? | | ????????????????????????????????????????? | | ????????????????????????????????????????? | | ????????????????????????????????????????? | | ????????????????????????????????????????? | | ????????????????????????????????????????? | | ????????????????????????????????????????? | | ????????????????????????????????????????? | | ????????????????????????????????????????? | | ?????# ?????????#???????????????????????? | | ?????# ???????? ???????????????????????? | | ?????# ???#??#;##?????????????????????? | | ?????? ## ### ##????????????????????? | | ?????### # ;# #????????????????????? | | ?????# " "#% #????????????????????? | | ?????#"" % %a% #????????????????????? | | ?????#" % %%aa ##????????????????????? | | ??????# % % %a%%##?????????????????????? | | ??????#" $ % ; #######????????????????? | | ??????### "% #????????????????? | | ????????## ##;a%##### #????????????????? | | ?????????###??# %#???# #????????????????? | | ???########???# #???# #???????????###### | | ???# #???# #???# #???????????# | | ???# """ #???# #??## #???????????# | | ???# """ #???# @#?## ###?????????# | | ???# """ #???# ### ##????????# """ | | ???# #???# ##?#####?# """ | | ????#### ###### ## ### ### """ | | ???????# ### ######### ## | | ???????# ## ##???????## """ | | ????#### # ##?????????## ## """ | | ????# #???????????##### ### """ | | ????# #???????????????####?# | | ????## ## ##????????????????????# | | ?????###?#####?????????????????????###### | | ????????????????????????????????????????? | | ????????????????????????????????????????? | | | | | | | | | | | | | | | | | | | | | | | | | +----------------------------------------------------+ Best States ------------- Heat Dissipation 35 Energy Generation 10 Energy Capacity 250 Matter Stores 300 Matter Capacity 300 Sight Range 16 Terrain Scan Density 10 Evasion (%) 55 Recoil Reduction 2 Item Schematics ----------------- None Robot Schematics ------------------ None Fabricated ------------ Nothing Alien Tech Used ----------------- None Achievements -------------- None Challenges ------------ None Game ------ Seed ForceMomentumSabre Manual? 0 Play Time 00:40:08 Cumulative 5.9 hours Start 2022.04.22 @ 21:27:35 End 2022.04.22 @ 22:10:12 Sessions 1 Manual Loads 0 Difficulty Rogue Special Mode None Game No. 4 Rogue 4 Adventurer 0 Explorer 0 Win Type - Total 0 Types 0/0/0/0/0/0/0/0/0 Lore% 11 Gallery% 8 Achievement% 9 Wizard Run 0 Options --------- ASCII 0 Keyboard 0 Movement Mouse Keybinds 0 Fullscreen 2 Font 18/TerminusBold Map View 76x50 Tactical HUD 0 Map Filters NONE Filters NONE Steam 1 RUN: 853006a9-4027-40be-bace-29f4361871ab